bitfinex/quotes_SOLUSD_20251120
["timestamp","ask_amount","ask_price","bid_price","bid_amount"]
[1763629281695,1.64,143.39,143.37,12.82091463]
[1763629282788,1.64,143.39,143.37,13.53091463]
[1763629283109,2.34,143.39,143.37,4.08674064]
[1763629283607,2.34,143.39,143.37,11.06159919]
[1763629283779,1.64,143.39,143.37,11.77159919]
[1763629284693,2.34,143.39,143.37,11.06159919]
[1763629285001,2.34,143.39,143.37,11.77159919]
[1763629285410,2.34,143.39,143.37,17.61765837]
[1763629285894,1.64,143.39,143.37,17.61765837]
[1763629287697,2.36,143.39,143.37,12.82091773]
[1763629287879,2.36,143.39,143.37,9.93279982]
[1763629288085,1.64,143.39,143.37,9.93279982]
[1763629288278,1.64,143.39,143.37,10.65279982]
[1763629290400,2.36,143.39,143.37,9.93279982]
[1763629291009,1.64,143.39,143.37,10.65279982]
[1763629291391,1.64,143.39,143.37,4.80674064]
[1763629291604,1.64,143.39,143.37,10.65279982]
[1763629293387,7.69360484,143.4,143.37,17.62766172]
[1763629293592,1.64,143.39,143.37,17.62766172]
[1763629294092,1.64,143.39,143.38,4.08674064]
[1763629294909,1.64,143.41,143.38,10.31183845]
[1763629295114,1.64,143.41,143.4,2.61748353]
[1763629295290,1.64,143.41,143.39,9.1974555]
[1763629297817,0.72,143.4,143.39,5.85997197]
[1763629297993,0.72,143.4,143.38,5.85997197]
[1763629298193,0.72,143.4,143.36,5.85997197]
[1763629298522,3.33748353,143.4,143.36,5.85997197]
[1763629298722,3.33748353,143.4,143.35,2.61748353]
[1763629298887,0.72,143.39,143.35,3.33748353]
[1763629299196,1.64,143.38,143.35,9.1974555]
[1763629299710,2.36,143.38,143.36,0.72]
[1763629300017,2.36,143.38,143.35,16.17337162]
[1763629300212,2.36,143.38,143.35,9.1974555]
[1763629300696,9.33457806,143.38,143.35,6.57997197]
[1763629300893,9.33457806,143.38,143.35,0.72]
[1763629301599,9.33457806,143.38,143.35,3.33748353]
[1763629302194,9.33457806,143.38,143.35,0.72]
[1763629302399,9.33457806,143.38,143.35,3.33748353]
[1763629302799,0.72,143.37,143.35,2.61748353]
[1763629303516,9.33457806,143.38,143.35,3.33748353]
[1763629305497,0.72,143.37,143.35,0.72]
[1763629305691,9.33457806,143.38,143.35,0.72]
[1763629305898,2.36,143.38,143.35,3.33748353]
[1763629306396,2.36,143.38,143.36,2.61748353]
[1763629306723,2.36,143.38,143.35,3.33748353]
[1763629306893,9.3345161,143.38,143.35,3.33748353]
[1763629308089,9.3345161,143.38,143.35,2.61748353]
[1763629308290,8.6145161,143.38,143.36,0.72]
[1763629308715,9.3345161,143.38,143.36,0.72]
[1763629308923,1.64,143.38,143.37,2.61748353]
[1763629309423,1.64,143.38,143.37,3.33748353]
[1763629309916,1.64,143.38,143.37,2.61748353]
[1763629310525,1.64,143.38,143.36,3.33748353]
[1763629312404,1.64,143.38,143.37,0.7]
[1763629312719,2.34,143.38,143.36,9.59290583]
[1763629312923,2.34,143.38,143.36,10.29290583]
[1763629313107,1.64,143.38,143.36,10.29290583]
[1763629316332,1.64,143.38,143.36,3.31748353]
[1763629316747,2.34,143.38,143.35,9.1774555]
[1763629316914,2.34,143.38,143.36,0.7]
[1763629318033,1.64,143.38,143.36,0.7]
[1763629320223,1.64,143.38,143.37,2.61748353]
[1763629320629,1.64,143.38,143.37,3.31748353]
[1763629320826,1.64,143.38,143.37,2.61748353]
[1763629323343,1.64,143.38,143.36,3.31748353]
[1763629323543,9.31450639,143.38,143.35,12.83587455]
[1763629323839,2.34,143.38,143.36,2.61748353]
[1763629324650,1.64,143.38,143.36,3.31748353]
[1763629325043,1.64,143.38,143.36,2.61748353]
[1763629325442,1.64,143.38,143.36,10.29284747]
[1763629325746,1.64,143.38,143.37,0.7]
[1763629326342,0.7,143.39,143.37,0.7]
[1763629326546,1.66,143.38,143.36,9.59284747]
[1763629326734,1.66,143.38,143.36,3.31748353]
[1763629327731,1.66,143.38,143.36,10.29292759]
[1763629329864,1.64,143.38,143.36,10.29292759]
[1763629330587,1.64,143.38,143.37,0.7]
[1763629331238,1.64,143.38,143.37,6.97495989]
[1763629332044,1.64,143.38,143.36,10.2928761]
[1763629332856,2.34,143.38,143.36,10.2928761]
[1763629333150,1.64,143.38,143.36,10.2928761]
[1763629334962,1.64,143.38,143.36,16.15284807]
[1763629335753,1.64,143.38,143.37,5.85997197]
[1763629337461,2.34,143.38,143.37,5.85997197]
[1763629337666,2.34,143.38,143.35,16.15321865]
[1763629337963,2.34,143.38,143.36,5.85997197]
[1763629338665,2.34,143.38,143.36,12.83526251]
[1763629339654,1.64,143.38,143.36,15.45274604]
[1763629339856,1.64,143.39,143.37,0.7]
[1763629340170,1.64,143.39,143.37,3.31748353]
[1763629340369,1.64,143.39,143.38,0.67]
[1763629343057,1.64,143.39,143.37,12.83482043]
[1763629343257,1.64,143.39,143.37,13.50482043]
[1763629344173,1.64,143.39,143.37,12.83482043]
[1763629344561,1.64,143.39,143.38,0.67]
[1763629344874,1.64,143.39,143.37,16.12230396]
[1763629346376,2.32,143.39,143.37,16.12230396]
[1763629346579,2.32,143.39,143.37,13.50482043]
[1763629346752,1.64,143.39,143.37,13.50482043]
[1763629346952,1.64,143.39,143.37,5.85997197]
[1763629347166,0.68,143.38,143.36,5.85997197]
[1763629347370,0.68,143.38,143.37,5.85997197]
[1763629347571,2.32,143.39,143.37,5.85997197]
[1763629350554,2.3,143.39,143.37,12.83492063]
[1763629350754,2.3,143.39,143.37,5.85997197]
[1763629351980,2.3,143.39,143.37,12.83490168]
[1763629354482,1.64,143.39,143.38,0.66]
[1763629357083,1.64,143.39,143.37,17.58668897]
[1763629357859,1.64,143.39,143.38,0.66]
[1763629358985,1.64,143.39,143.37,17.58668897]
[1763629359367,1.64,143.39,143.38,5.87762179]
[1763629359856,2.3,143.39,143.38,5.87762179]
[1763629360057,1.64,143.39,143.38,5.87762179]
[1763629360459,0.66,143.4,143.38,5.87762179]
[1763629360759,1.64,143.39,143.38,6.53762179]
[1763629360974,1.64,143.39,143.38,5.87762179]
[1763629362967,0.66,143.4,143.38,5.87762179]
[1763629363300,1.64,143.39,143.38,5.87762179]
[1763629365289,1.64,143.39,143.38,12.85209521]
[1763629366092,2.3,143.39,143.38,5.87762179]
[1763629366291,1.64,143.39,143.38,5.87762179]
[1763629366475,1.64,143.39,143.37,6.53762179]
[1763629368597,1.64,143.39,143.38,5.87762179]
[1763629372497,1.64,143.39,143.37,13.51257518]
[1763629372999,1.64,143.39,143.38,0.69]
[1763629373297,1.64,143.39,143.37,13.54257518]
[1763629374386,1.64,143.39,143.38,5.87762179]
[1763629375304,1.64,143.39,143.38,5.09262179]
[1763629376102,1.64,143.39,143.37,11.75674068]
[1763629376292,1.64,143.39,143.37,7.66495339]
[1763629380393,1.64,143.39,143.37,11.75674068]
[1763629381411,1.64,143.39,143.37,0.69]
[1763629385803,4.80178729,143.38,143.34,28.75547655]
[1763629386106,4.80178729,143.38,143.32,12.5128913]
[1763629386107,4.09178729,143.35,143.32,0.1]
[1763629386300,5.73178729,143.34,143.32,0.1]
[1763629386607,1.64,143.33,143.32,0.1]
[1763629386807,2.35,143.33,143.32,0.1]
[1763629388398,1.64,143.33,143.32,0.1]
[1763629388808,2.35,143.33,143.32,0.1]
[1763629390036,9.32690643,143.33,143.32,0.1]
[1763629390647,13.41869372,143.33,143.31,0.1]
[1763629390830,0.71,143.32,143.3,0.1]
[1763629391008,6.97788012,143.31,143.3,0.1]
[1763629391212,9.78882769,143.31,143.3,0.1]
[1763629391524,4.43397897,143.31,143.3,0.1]
[1763629391714,5.14397897,143.31,143.3,0.1]
[1763629391918,9.23576626,143.31,143.3,0.1]
[1763629393021,12.12185909,143.31,143.3,0.1]
[1763629393223,13.41966741,143.31,143.3,0.1]
[1763629393424,0.71,143.33,143.3,0.79]
[1763629393606,1.64,143.32,143.3,0.1]
[1763629394005,2.35,143.32,143.3,0.1]
[1763629394633,5.73178729,143.32,143.3,0.1]
[1763629394814,0.71,143.31,143.3,0.1]
[1763629395920,1.64,143.32,143.3,0.1]
[1763629396120,2.35,143.32,143.3,0.1]
[1763629400518,1.64,143.32,143.31,0.67]
[1763629401239,1.64,143.32,143.3,4.86178729]
[1763629401442,1.64,143.32,143.3,0.77]
[1763629401647,1.64,143.32,143.3,4.86178729]
[1763629402621,1.64,143.32,143.31,0.67]
[1763629404658,1.64,143.32,143.3,0.1]
[1763629404841,4.81178729,143.31,143.3,0.1]
[1763629405538,11.78966741,143.31,143.3,0.1]
[1763629406836,11.06966741,143.31,143.3,0.1]
[1763629407149,7.69788012,143.31,143.3,0.1]
[1763629407334,11.78966741,143.31,143.3,0.1]
[1763629409328,23.2384951,143.31,143.3,0.1]
[1763629409737,34.3103226,143.31,143.3,0.1]
[1763629410061,34.3103226,143.31,143.25,0.1]
[1763629410062,34.88864176,143.29,143.25,0.1]
[1763629410234,32.00157498,143.26,143.25,0.1]
[1763629410437,33.66157498,143.26,143.25,0.1]
[1763629410623,34.35157498,143.26,143.25,0.1]
[1763629410823,37.14711609,143.26,143.25,0.1]
[1763629411345,44.1274316,143.26,143.25,0.1]
[1763629416832,42.66124637,143.26,143.25,0.1]
[1763629419243,24.54028637,143.26,143.24,0.1]
[1763629419439,38.20619254,143.25,143.23,0.1]
[1763629419644,4.97560206,143.24,143.23,0.1]
[1763629419951,7.77153397,143.24,143.23,0.1]
[1763629420336,17.56036166,143.24,143.23,0.1]
[1763629420845,18.12096,143.23,143.21,0.1]
[1763629421044,21.43656206,143.23,143.21,0.1]
[1763629421345,28.41833962,143.23,143.21,0.1]
[1763629421544,9.78882769,143.22,143.21,0.1]
[1763629421848,9.78882769,143.22,143.16,0.66]
[1763629421849,9.78882769,143.21,143.19,0.66]
[1763629422051,12.41442975,143.2,143.15,0.1]
[1763629422240,1.66,143.19,143.17,0.66]
[1763629422855,1.66,143.18,143.17,0.66]
[1763629426442,19.39775573,143.2,143.17,0.66]
[1763629426765,1.66,143.18,143.17,0.66]
[1763629428440,8.64421567,143.18,143.17,0.66]
[1763629429153,1.66,143.18,143.17,0.099]
[1763629429562,1.66,143.18,143.15,2.62560206]
[1763629430155,1.66,143.18,143.14,6.98596632]
[1763629430352,1.66,143.18,143.15,2.62560206]
[1763629431052,1.66,143.19,143.17,2.62560206]
[1763629431260,1.66,143.19,143.14,24.45138479]
[1763629431479,4.97560206,143.19,143.15,0.72]
[1763629431645,0.69,143.18,143.15,0.72]
[1763629431849,2.62560206,143.17,143.13,0.72]
[1763629432060,4.28560206,143.16,143.08,27.97456363]
[1763629432363,6.98616738,143.14,143.11,0.72]
[1763629432673,1.66,143.13,143.11,0.72]
[1763629433368,1.66,143.13,143.11,3.34560206]
[1763629433666,1.66,143.13,143.11,0.72]
[1763629433863,1.66,143.13,143.12,0.72]
[1763629435686,1.66,143.13,143.11,2.62560206]
[1763629435861,1.66,143.13,143.12,0.72]
[1763629436164,1.66,143.13,143.1,9.61336211]
[1763629436466,1.66,143.13,143.11,0.72]
[1763629438472,1.66,143.13,143.11,7.70756381]
[1763629438971,1.66,143.13,143.12,0.72]
[1763629440369,1.66,143.13,143.12,3.34560206]
[1763629440568,1.66,143.15,143.12,3.34560206]
[1763629440870,1.66,143.15,143.14,2.62560206]
[1763629441373,0.69,143.17,143.14,0.72]
[1763629441569,1.66,143.16,143.14,0.72]
[1763629441775,1.66,143.16,143.14,3.34560206]
[1763629443573,3.31560206,143.15,143.12,0.72]
[1763629443770,0.69,143.14,143.11,0.72]
[1763629443946,1.66,143.13,143.11,3.34560206]
[1763629445545,18.12096,143.17,143.12,3.34560206]
[1763629445741,1.66,143.16,143.14,2.62560206]
[1763629445954,2.35,143.16,143.13,0.72]
[1763629446571,2.35,143.16,143.06,107.48782569]
[1763629446572,0.69,143.15,143.03,5.82782569]
[1763629446788,18.12096,143.12,143.04,0.72]
[1763629446974,18.12096,143.12,143.08,2.62560206]
[1763629446975,11.44882769,143.11,143.08,2.62560206]
[1763629447178,1.66,143.1,143.09,2.62560206]
[1763629447965,1.66,143.1,143.08,3.34560206]
[1763629448378,1.66,143.1,143.08,2.62560206]
[1763629448888,1.66,143.1,143.07,0.72]
[1763629449182,1.66,143.1,143.07,7.70938996]
[1763629450075,0.69,143.11,143.07,7.70938996]
[1763629450389,1.66,143.1,143.07,0.72]
[1763629450732,1.66,143.1,143.06,6.99000083]
[1763629450862,1.66,143.1,143.07,0.72]
[1763629451563,2.35,143.1,143.07,0.72]
[1763629455269,2.35,143.1,143.07,7.70956323]
[1763629455684,1.66,143.1,143.07,7.70956323]
[1763629455900,1.66,143.1,143.08,0.72]
[1763629457409,1.66,143.1,143.08,7.7088234]
[1763629457789,1.66,143.1,143.09,0.72]
[1763629459486,1.66,143.1,143.09,7.70860856]
[1763629460490,1.66,143.1,143.09,6.98860856]
[1763629461502,1.66,143.1,143.05,20.74656206]
[1763629461799,4.94560206,143.1,143.06,0.65]
[1763629461970,2.32,143.1,143.06,0.65]
[1763629462404,1.66,143.1,143.06,10.26567615]
[1763629462901,1.66,143.1,143.07,0.65]
[1763629463798,1.66,143.1,143.07,7.63920399]
[1763629464300,1.66,143.1,143.08,0.65]
[1763629464917,1.66,143.1,143.08,3.27560206]
[1763629465116,1.66,143.1,143.08,0.65]
[1763629465775,1.66,143.1,143.09,6.98860856]
[1763629466411,1.66,143.11,143.09,7.63860856]
[1763629466619,1.66,143.11,143.09,0.65]
[1763629467823,1.66,143.11,143.09,7.63854755]
[1763629468522,1.66,143.11,143.09,7.64854755]
[1763629468880,1.66,143.11,143.09,0.66]
[1763629469523,2.31,143.11,143.08,6.98888841]
[1763629469815,2.31,143.11,143.08,7.64888841]
[1763629471522,0.65,143.17,143.11,18.12096]
[1763629471722,40.72048958,143.23,143.13,20.74656206]
[1763629471723,2.31,143.19,143.13,20.74656206]
[1763629472011,1.66,143.2,143.15,2.62560206]
[1763629472224,1.66,143.2,143.16,0.66]
[1763629472429,2.31,143.2,143.16,0.66]
[1763629472592,0.65,143.19,143.16,0.66]
[1763629473713,0.65,143.19,143.13,10.27177986]
[1763629473714,2.62560206,143.18,143.13,10.27177986]
[1763629473926,1.66,143.17,143.13,7.6461778]
[1763629474100,2.31,143.17,143.13,10.27177986]
[1763629474301,0.65,143.16,143.13,6.9861778]
[1763629475025,0.65,143.16,143.13,7.6461778]
[1763629475323,0.65,143.16,143.13,10.27177986]
[1763629476815,0.65,143.16,143.13,11.75144014]
[1763629477814,0.65,143.16,143.13,7.6461778]
[1763629478018,0.65,143.16,143.13,11.75144014]
[1763629479020,0.65,143.16,143.13,7.6461778]
[1763629479221,0.65,143.16,143.13,11.75144014]
[1763629480105,0.65,143.16,143.13,7.6461778]
[1763629480306,0.65,143.16,143.13,11.75144014]
[1763629484509,0.65,143.16,143.13,7.6461778]
[1763629484711,0.65,143.16,143.13,11.75144014]
[1763629485028,11.74056005,143.16,143.12,6.98702492]
[1763629485206,7.63529771,143.16,143.12,11.09228726]
[1763629485410,0.65,143.15,143.12,11.09228726]
[1763629485623,0.65,143.15,143.12,11.75228726]
[1763629485928,1.66,143.14,143.12,11.75228726]
[1763629486229,1.66,143.14,143.12,6.98702492]
[1763629486409,2.31,143.14,143.12,6.98702492]
[1763629486612,2.31,143.14,143.11,11.09271581]
[1763629486927,2.31,143.14,143.11,11.75271581]
[1763629488136,1.66,143.14,143.12,0.66]
[1763629488650,2.31,143.14,143.11,11.75271581]
[1763629488849,1.66,143.14,143.11,11.75271581]
[1763629489539,2.31,143.14,143.12,4.10526234]
[1763629491436,1.66,143.14,143.12,11.80231217]
[1763629492433,1.66,143.14,143.12,11.09231217]
[1763629492637,1.66,143.14,143.12,4.10526234]
[1763629492813,0.67,143.13,143.11,11.09270259]
[1763629493417,2.33,143.14,143.11,11.80270259]
[1763629493835,2.33,143.14,143.12,4.10526234]
[1763629494621,2.33,143.14,143.12,11.09234864]
[1763629494932,0.67,143.13,143.12,4.10526234]
[1763629495140,2.33,143.14,143.12,4.10526234]
[1763629496142,2.33,143.14,143.12,11.09239191]
[1763629496619,2.33,143.14,143.12,4.10526234]
[1763629497250,2.33,143.14,143.12,11.09238992]
[1763629499613,1.66,143.14,143.12,11.09238992]
[1763629500452,1.66,143.14,143.12,11.80239049]
[1763629500657,2.33,143.14,143.12,11.09239049]
[1763629501058,0.67,143.21,143.13,54.81526234]
[1763629501214,1.66,143.2,143.18,4.10526234]
[1763629501415,1.66,143.2,143.18,4.81526234]
[1763629502021,1.66,143.2,143.19,4.10526234]
[1763629503551,1.66,143.2,143.14,10.64308803]
[1763629503552,6.43526234,143.2,143.14,10.64308803]
[1763629503750,4.77526234,143.19,143.14,4.81526234]
[1763629504122,0.67,143.18,143.14,4.81526234]
[1763629504326,1.66,143.17,143.14,11.80096585]
[1763629504825,1.66,143.17,143.15,4.10526234]
[1763629505146,1.66,143.17,143.16,4.10526234]
[1763629506331,1.66,143.17,143.16,11.09045373]
[1763629507248,1.66,143.17,143.16,11.80045373]
[1763629507648,0.67,143.2,143.16,11.80045373]
[1763629507836,1.66,143.19,143.17,0.71]
[1763629508036,1.66,143.19,143.17,4.81526234]
[1763629508347,6.98214705,143.23,143.18,11.08947801]
[1763629508546,0.67,143.23,143.2,4.10526234]
[1763629508747,2.33,143.22,143.2,4.10526234]
[1763629509140,2.33,143.22,143.19,4.10526234]
[1763629509740,2.33,143.22,143.19,11.08872009]
[1763629510236,2.33,143.22,143.19,11.79872009]
[1763629510433,1.66,143.22,143.16,23.29013985]
[1763629510638,1.66,143.22,143.16,4.10526234]
[1763629510639,4.77526234,143.21,143.16,4.10526234]
[1763629511056,0.67,143.2,143.16,4.81526234]
[1763629511258,1.66,143.19,143.16,4.81526234]
[1763629511657,2.33,143.19,143.16,7.69502189]
[1763629511840,2.33,143.19,143.16,11.80028423]
[1763629515859,1.66,143.19,143.17,4.81526234]
[1763629516246,7.65297424,143.21,143.18,4.81526234]
[1763629516551,1.66,143.2,143.18,4.81526234]
[1763629516729,1.66,143.2,143.19,4.81526234]
[1763629516929,0.67,143.22,143.19,0.71]
[1763629517144,1.66,143.21,143.19,4.81526234]
[1763629517337,1.66,143.21,143.17,4.10526234]
[1763629517536,0.67,143.2,143.17,4.10526234]
[1763629518271,0.67,143.2,143.17,11.79965738]
[1763629518564,0.67,143.2,143.18,4.10526234]
[1763629519760,1.66,143.21,143.18,4.10526234]
[1763629519761,2.33,143.21,143.18,4.10526234]
[1763629519971,1.66,143.21,143.18,4.79526234]
[1763629520166,0.67,143.22,143.19,4.10526234]
[1763629520343,1.66,143.2,143.19,4.10526234]
[1763629521355,2.34,143.2,143.17,6.98455604]
[1763629521543,0.68,143.19,143.17,11.08981838]
[1763629522566,0.68,143.19,143.15,17.46351189]
[1763629522771,0.68,143.19,143.13,0.69]
[1763629522772,4.10526234,143.18,143.13,0.69]
[1763629522963,1.66,143.17,143.13,4.79526234]
[1763629523264,6.44526234,143.17,143.12,6.98693356]
[1763629523446,6.44526234,143.17,143.12,11.0921959]
[1763629523447,0.68,143.16,143.12,11.0921959]
[1763629524448,7.66535339,143.16,143.12,11.0921959]
[1763629524768,7.66535339,143.16,143.08,5.76526234]
[1763629524769,18.12096,143.12,143.08,5.82782569]
[1763629524937,18.12096,143.12,143.03,0.69]
[1763629524938,4.10526234,143.09,143.03,0.69]
[1763629525145,5.76526234,143.08,143.03,0.69]
[1763629525557,6.44526234,143.08,143.03,0.69]
[1763629525759,0.68,143.07,143.03,0.69]
[1763629526174,0.68,143.07,143.02,4.20526234]
[1763629526175,4.10526234,143.05,143.02,0.1]
[1763629526347,1.66,143.04,143.02,0.1]
[1763629527458,2.34,143.04,143.02,0.1]
[1763629531470,1.66,143.04,143.02,0.1]
[1763629532987,0.7,143.03,143.02,0.1]
[1763629535464,7.69154023,143.03,143.02,0.1]
[1763629537373,1.66,143.04,143.02,0.1]
[1763629538056,0.7,143.05,143.02,0.1]
[1763629538372,4.80526234,143.05,143.02,0.1]
[1763629538571,0.7,143.04,143.02,0.1]
[1763629538747,2.36,143.04,143.02,0.1]
[1763629538950,1.66,143.03,143.02,0.1]
[1763629539178,9.35154023,143.03,143.02,0.1]
[1763629542174,19.14036792,143.03,143.02,0.1]
[1763629542359,21.77246058,143.03,143.02,0.1]
[1763629543784,9.35154023,143.03,143.02,0.1]
[1763629545259,11.98363289,143.03,143.02,0.1]
[1763629545460,9.35154023,143.03,143.02,0.1]
[1763629545875,21.77246058,143.03,143.02,0.1]
[1763629547670,19.14036792,143.03,143.02,0.1]
[1763629547984,21.77246058,143.03,143.02,0.1]
[1763629550801,39.89342058,143.03,143.02,0.1]
[1763629551186,38.23342058,143.03,143.02,0.1]
[1763629551387,39.89342058,143.03,143.02,0.1]
[1763629551997,38.23342058,143.03,143.02,0.1]
[1763629552286,39.89342058,143.03,143.02,0.1]
[1763629554293,21.77246058,143.03,143.02,0.1]
[1763629556683,39.89342058,143.03,143.02,0.1]
[1763629560304,34.90132792,143.03,143.02,0.1]
[1763629560586,39.87342058,143.03,143.02,0.1]
[1763629560775,37.24132792,143.03,143.02,0.1]
[1763629560973,39.87342058,143.03,143.02,0.1]
[1763629562266,9.62350532,143.04,143.02,0.79]
[1763629562475,1.66,143.03,143.02,0.79]
[1763629565490,0.68,143.09,143.02,10.41412174]
[1763629565694,2.63209266,143.06,143.02,0.79]
[1763629565990,4.29209266,143.05,143.02,0.79]
[1763629566297,1.66,143.04,143.02,0.79]
[1763629566899,1.66,143.04,143.02,0.1]
[1763629567066,1.66,143.04,143.02,0.79]
[1763629567265,4.97209266,143.04,143.02,0.1]
[1763629567492,9.3314379,143.04,143.02,0.1]
[1763629567673,8.6514379,143.04,143.02,0.1]
[1763629568794,11.28353056,143.04,143.02,0.1]
[1763629569183,8.6514379,143.04,143.02,0.79]
[1763629571191,11.28353056,143.04,143.02,0.79]
[1763629573525,1.66,143.04,143.02,0.79]
[1763629573794,1.66,143.05,143.02,10.41405496]
[1763629573999,1.66,143.05,143.03,0.69]
[1763629574512,6.9883236,143.1,143.03,3.32209266]
[1763629574800,1.66,143.09,143.05,6.99056274]
[1763629575173,1.66,143.09,143.06,0.69]
[1763629575599,1.66,143.09,143.08,2.63209266]
[1763629575830,1.66,143.09,143.08,0.69]
[1763629579680,1.66,143.09,143.08,3.32209266]
[1763629580289,7.66717001,143.12,143.08,3.32209266]
[1763629580498,1.66,143.11,143.08,3.32209266]
[1763629580778,1.66,143.11,143.09,3.30209266]
[1763629581185,1.66,143.11,143.1,0.67]
[1763629582401,1.66,143.11,143.1,3.30209266]
[1763629582602,1.66,143.11,143.1,10.29021285]
[1763629582819,1.66,143.11,143.1,3.30209266]
[1763629584927,1.66,143.11,143.1,0.67]
[1763629585428,1.66,143.12,143.1,0.67]
[1763629586199,0.7,143.11,143.07,0.67]
[1763629586417,0.7,143.11,143.05,97.69698129]
[1763629586418,0.7,143.11,143.08,3.30209266]
[1763629587515,9.34749865,143.12,143.08,3.30209266]
[1763629587830,9.34749865,143.12,143.08,9.62118872]
[1763629588130,9.34749865,143.12,143.09,0.67]
[1763629588625,2.36,143.12,143.09,0.67]
[1763629588831,0.71,143.11,143.08,0.69]
[1763629589719,8.64729691,143.12,143.08,7.67907266]
[1763629589923,9.35729691,143.12,143.08,10.31116532]
[1763629590130,9.35729691,143.12,143.09,0.69]
[1763629591330,2.37,143.12,143.1,2.63209266]
[1763629591534,2.37,143.12,143.09,3.32209266]
[1763629591709,2.37,143.12,143.09,0.69]
[1763629591907,2.37,143.12,143.09,7.67858118]
[1763629592726,2.37,143.12,143.09,10.31067384]
[1763629594730,2.37,143.12,143.11,2.63209266]
[1763629594731,1.66,143.12,143.11,2.63209266]
[1763629595140,1.66,143.12,143.11,3.32209266]
[1763629596015,1.66,143.12,143.1,9.61996611]
[1763629596210,1.66,143.12,143.1,10.30996611]
[1763629597234,1.66,143.12,143.11,2.63209266]
[1763629597426,1.66,143.12,143.11,3.32209266]
[1763629598024,1.66,143.12,143.11,2.63209266]
[1763629598939,1.66,143.12,143.11,4.10643481]
[1763629600338,1.66,143.12,143.1,11.78430826]
[1763629600641,1.66,143.12,143.11,0.69]
[1763629601139,2.37,143.12,143.08,4.10643481]
[1763629601313,0.71,143.11,143.07,4.79643481]
[1763629601510,0.71,143.11,143.07,4.10643481]
[1763629601511,7.6978535,143.11,143.07,4.10643481]
[1763629601913,0.71,143.1,143.07,4.79643481]
[1763629602143,1.66,143.09,143.05,4.79643481]
[1763629602320,1.66,143.09,143.05,4.10643481]
[1763629602514,2.37,143.09,143.06,0.69]
[1763629602733,1.66,143.1,143.08,4.10643481]
[1763629603243,2.37,143.1,143.07,4.10643481]
[1763629603746,9.35840277,143.1,143.07,4.79643481]
[1763629605045,9.35840277,143.1,143.07,0.69]
[1763629606240,2.37,143.1,143.07,11.7859227]
[1763629606739,1.66,143.1,143.08,0.69]
[1763629608550,8.64814414,143.1,143.08,0.69]
[1763629608730,8.64814414,143.1,143.06,6.98987127]
[1763629608731,9.35814414,143.1,143.06,4.79643481]
[1763629608938,8.64814414,143.1,143.06,0.69]
[1763629609259,4.81643481,143.09,143.04,11.78734326]
[1763629609427,4.10643481,143.08,143.04,0.69]
[1763629609622,1.66,143.07,143.03,4.10643481]
[1763629609866,1.66,143.07,143.04,0.69]
[1763629609867,2.37,143.07,143.04,0.69]
[1763629610254,9.36006887,143.07,143.04,0.69]
[1763629611441,0.66,143.06,143.02,0.1]
[1763629611629,0.66,143.06,143.02,4.90643481]
[1763629612030,0.66,143.06,143.03,0.7]
[1763629612567,7.65029014,143.06,143.03,4.80643481]
[1763629612726,7.65029014,143.06,143.03,4.10643481]